bitfinex/quotes_ETHUSD_20260308
["timestamp","ask_amount","ask_price","bid_price","bid_amount"]
[1772974440729,2.16580239,1947.0,1946.7,0.0011]
[1772974441024,2.16580239,1946.8,1946.4,0.0011]
[1772974443020,2.10761679,1946.7,1946.5,0.0023]
[1772974443320,2.63716535,1946.8,1946.5,1.96193031]
[1772974443521,2.10761679,1946.7,1946.5,0.0023]
[1772974443921,2.10761679,1946.7,1946.4,0.0011]
[1772974444227,2.10761679,1946.7,1946.4,0.0034]
[1772974445932,2.11436527,1946.6,1946.4,0.0034]
[1772974447031,2.11436527,1946.7,1946.5,0.0023]
[1772974447824,1.28421534,1946.8,1946.4,2.00191067]
[1772974448699,2.11436527,1946.7,1946.4,2.00191067]
[1772974449602,3.39859829,1946.7,1946.4,2.00191067]
[1772974450439,3.39859829,1946.7,1946.5,0.0011]
[1772974450624,3.39959829,1946.7,1946.5,0.0011]
[1772974452931,3.39959829,1946.7,1946.6,0.0023]
[1772974453419,2.11536527,1946.7,1946.6,0.0023]
[1772974453813,3.39958985,1946.7,1946.6,0.0023]
[1772974454935,0.001,1946.7,1946.6,0.0023]
[1772974459545,0.001,1946.7,1946.5,0.0011]
[1772974459546,2.11536527,1946.7,1946.5,0.0011]
[1772974460458,0.001,1946.7,1946.5,2.00191067]
[1772974462238,0.001,1946.7,1946.6,0.0011]
[1772974464964,0.001,1946.7,1946.6,2.00191067]
[1772974469572,0.001,1946.7,1946.6,3.28620122]
[1772974469743,0.001,1946.7,1946.6,2.00191067]
[1772974476471,0.001,1946.7,1946.6,3.28620122]
[1772974476674,0.001,1946.7,1946.6,2.00191067]
[1772974482078,0.001,1946.7,1946.6,0.0011]
[1772974482281,2.08505049,1946.7,1946.5,0.0011]
[1772974483789,0.001,1946.7,1946.5,2.05366566]
[1772974485887,0.001,1946.7,1946.6,0.0011]
[1772974486382,2.08505049,1946.7,1946.6,0.0011]
[1772974489875,0.001,1946.7,1946.6,0.0011]
[1772974499269,0.001,1946.7,1946.6,2.05366566]
[1772974501190,2.08505049,1946.7,1946.6,0.0011]
[1772974501514,2.08405049,1946.6,1946.5,0.0011]
[1772974501811,2.08405049,1946.6,1946.3,0.0011]
[1772974501963,3.45105049,1946.6,1946.3,0.0011]
[1772974502163,2.08405049,1946.5,1946.3,0.0011]
[1772974504199,3.36843512,1946.5,1946.3,0.0011]
[1772974509508,3.36843512,1946.5,1946.4,0.0011]
[1772974516107,1.28438463,1946.5,1946.4,0.0011]
[1772974516348,2.65638463,1946.5,1946.4,0.0011]
[1772974516514,4.60491555,1946.5,1946.4,0.0011]
[1772974517410,1.94853092,1946.4,1946.2,0.26481944]
[1772974519319,1.94853092,1946.4,1946.3,0.0022]
[1772974519816,3.23298531,1946.4,1946.2,0.26481944]
[1772974520011,3.23298531,1946.4,1946.3,0.0022]
[1772974521004,3.23298531,1946.4,1946.2,0.26481944]
[1772974521192,3.23298531,1946.4,1946.3,0.0022]
[1772974521999,3.23398531,1946.4,1946.3,0.0022]
[1772974522325,3.23398531,1946.4,1946.3,0.0033]
[1772974523123,3.23398531,1946.4,1946.1,1.88766016]
[1772974523619,3.23398531,1946.4,1946.1,0.0011]
[1772974525022,1.28545439,1946.4,1946.1,0.0011]
[1772974525225,1.94853092,1946.3,1946.1,0.0011]
[1772974527624,3.23307702,1946.3,1946.1,0.0011]
[1772974529713,1.94853092,1946.1,1945.9,0.0011]
[1772974530226,2.66355451,1946.2,1945.9,1.88766016]
[1772974530227,3.32753092,1946.2,1945.9,1.88766016]
[1772974530401,4.61209406,1946.2,1945.9,1.88766016]
[1772974530926,3.23309406,1946.2,1945.9,1.88766016]
[1772974531133,2.66456314,1946.2,1945.9,1.88766016]
[1772974531929,1.94853092,1946.1,1945.9,0.0011]
[1772974534038,1.98845267,1946.0,1945.2,0.0011]
[1772974534248,1.98845267,1945.8,1945.0,0.99562087]
[1772974535256,1.98845267,1945.8,1945.0,0.00263886]
[1772974535852,1.98845267,1945.8,1945.1,1.08469671]
[1772974536159,1.98845267,1945.5,1945.1,1.08469671]
[1772974536646,2.66695065,1945.6,1945.1,1.08469671]
[1772974536846,1.98845267,1945.5,1945.1,1.08469671]
[1772974538449,1.28508275,1945.4,1945.1,1.08469671]
[1772974538646,3.27353542,1945.4,1945.1,1.08469671]
[1772974539322,1.98845267,1945.3,1945.0,0.00263886]
[1772974540555,1.98845267,1945.1,1945.0,0.00263886]
[1772974541538,1.28521488,1945.2,1945.0,0.00263886]
[1772974542144,3.27366755,1945.2,1945.0,0.00263886]
[1772974543256,1.28518812,1945.3,1945.0,1.07553522]
[1772974543627,3.27364079,1945.3,1945.0,1.07553522]
[1772974543926,1.98845267,1945.2,1945.0,0.00263886]
[1772974544359,1.98845267,1945.5,1945.1,1.07147363]
[1772974545358,1.28508275,1945.4,1945.1,1.07257363]
[1772974545859,1.98845267,1945.6,1945.1,1.07257363]
[1772974546065,1.98845267,1945.8,1945.2,1.06999341]
[1772974547365,1.28468653,1946.0,1945.4,1.06705577]
[1772974547533,1.98845267,1945.9,1945.4,1.06705577]
[1772974549572,1.98945267,1946.1,1945.6,1.06414219]
[1772974549956,3.27410152,1946.1,1945.6,1.06414219]
[1772974553139,3.27410152,1946.1,1945.7,1.05826808]
[1772974554738,1.98845267,1946.0,1945.7,1.05826808]
[1772974556252,3.27314064,1946.0,1945.7,1.05826808]
[1772974556855,3.27315211,1946.0,1945.7,1.05826808]
[1772974557256,3.27314359,1946.0,1945.7,1.05826808]
[1772974557648,3.27314359,1946.0,1945.3,0.0011]
[1772974557649,1.98845267,1945.9,1945.3,1.28622825]
[1772974557844,1.98845267,1945.9,1945.3,2.33856122]
[1772974558067,1.98845267,1945.9,1945.4,1.05087621]
[1772974559246,1.98845267,1945.7,1945.3,0.0011]
[1772974559452,1.98845267,1945.7,1945.3,2.33563127]
[1772974560377,1.98845267,1945.8,1945.4,1.04791193]
[1772974561569,3.27332605,1945.8,1945.4,1.04791193]
[1772974563787,2.0226733,1945.7,1945.3,1.04491898]
[1772974567499,2.0226733,1945.7,1945.2,0.0011]
[1772974567500,1.85369976,1945.6,1945.1,0.0011]
[1772974567668,3.23969976,1945.5,1945.1,1.04040485]
[1772974568761,1.85369976,1945.4,1945.1,0.0011]
[1772974569591,3.13878251,1945.4,1945.3,0.0011]
[1772974569757,1.85369976,1945.3,1945.1,0.0011]
[1772974570571,1.85369976,1945.3,1945.2,0.0011]
[1772974570892,1.85369976,1945.3,1945.1,0.0011]
[1772974571686,3.13891464,1945.2,1945.1,0.0011]
[1772974574373,1.389,1945.2,1945.1,0.0011]
[1772974575578,3.24269976,1945.3,1945.1,0.0011]
[1772974576814,4.52790145,1945.3,1945.1,0.0011]
[1772974577107,1.85369976,1945.6,1945.2,1.02598045]
[1772974579512,1.2850167,1945.5,1945.2,1.02598045]
[1772974580513,3.13871646,1945.5,1945.2,1.02598045]
[1772974582309,3.13871646,1945.5,1945.2,0.0011]
[1772974582610,1.85469976,1945.4,1945.2,0.0011]
[1772974583684,3.13979055,1945.4,1945.1,1.01773721]
[1772974583884,4.53279055,1945.4,1945.1,1.01773721]
[1772974585319,3.24769976,1945.4,1945.1,1.01773721]
[1772974585617,1.85469976,1945.4,1945.1,1.01773721]
[1772974585820,1.85469976,1945.4,1945.1,2.30299682]
[1772974585996,0.001,1945.4,1945.2,1.01371655]
[1772974590809,3.24569976,1945.5,1945.2,1.01371655]
[1772974591720,4.53074195,1945.5,1945.2,1.01371655]
[1772974592104,1.28590048,1945.7,1945.3,1.96971508]
[1772974592493,3.25457605,1945.7,1945.3,1.96971508]
[1772974592889,3.25457605,1945.7,1945.4,1.87199777]
[1772974593211,1.96967557,1945.7,1945.4,1.87199777]
[1772974593522,4.64856457,1945.7,1945.4,1.87199777]
[1772974594903,1.96867557,1945.6,1945.2,1.87309777]
[1772974595099,3.25365436,1945.6,1945.2,3.15830619]
[1772974595307,1.96867557,1945.6,1945.2,3.15830619]
[1772974595493,3.25362629,1945.6,1945.2,3.15830619]
[1772974596500,1.96867557,1945.5,1945.2,1.87309777]
[1772974598329,1.96867557,1945.4,1945.2,0.0011]
[1772974601301,1.96967557,1945.7,1945.3,1.87199777]
[1772974601512,1.396,1945.6,1945.3,1.87199777]
[1772974603500,3.36467557,1945.6,1945.3,1.87199777]
[1772974606725,3.36467557,1945.6,1945.3,1.87309777]
[1772974606919,0.001,1945.5,1945.3,1.87309777]
[1772974609033,0.001,1945.5,1945.4,1.87199777]
[1772974611034,0.001,1945.5,1945.3,1.87309777]
[1772974613236,0.001,1945.5,1945.4,1.87199777]
[1772974616412,0.001,1945.5,1945.4,3.15708052]
[1772974617339,0.001,1945.5,1945.4,1.87199777]
[1772974618641,0.001,1945.5,1945.4,1.87309777]
[1772974619218,0.001,1945.5,1945.4,3.15818052]
[1772974620640,0.001,1945.7,1945.5,1.87199777]
[1772974621234,1.96967557,1945.7,1945.4,0.0011]
[1772974624244,1.97671151,1945.6,1945.4,0.0011]
[1772974628050,0.001,1945.7,1945.4,1.99229302]
[1772974629953,0.001,1945.7,1945.5,1.2850167]
[1772974630160,0.001,1945.7,1945.5,3.27620972]
[1772974630454,0.001,1945.7,1945.6,1.99119302]
[1772974634941,0.001,1945.7,1945.5,3.27730968]
[1772974635657,0.001,1945.7,1945.6,1.99119302]
[1772974638362,0.001,1945.7,1945.5,3.27730217]
[1772974640368,0.001,1945.7,1945.6,1.99119302]
[1772974640536,1.97771151,1946.0,1945.6,1.99119302]
[1772974642162,1.97671151,1945.9,1945.6,1.99229302]
[1772974645960,1.97771151,1946.0,1945.7,1.99119302]
[1772974646476,3.26240026,1946.0,1945.7,1.99119302]
[1772974646665,1.97671151,1945.9,1945.6,1.28601223]
[1772974647978,1.97671151,1945.9,1945.6,1.99229302]
[1772974650676,1.97671151,1945.9,1945.6,3.27724142]
[1772974654487,0.001,1945.8,1945.6,3.27724142]
[1772974655150,0.001,1945.8,1945.6,1.9489246]
[1772974657289,1.88851278,1945.8,1945.6,0.0011]
[1772974657463,1.88851278,1945.8,1945.4,0.0011]
[1772974660274,1.88751278,1945.6,1945.4,0.0011]
[1772974663384,1.88751278,1945.5,1945.4,0.0011]
[1772974665795,3.17252948,1945.5,1945.4,0.0011]
[1772974672305,2.40786743,1945.5,1945.4,0.0011]
[1772974675387,1.12285073,1945.5,1945.4,0.0011]
[1772974676511,2.40786743,1945.5,1945.4,0.0011]
[1772974676713,1.12285073,1945.5,1945.4,0.0011]
[1772974676903,4.57551313,1945.6,1945.4,0.0011]
[1772974677912,1.88751278,1945.5,1945.4,0.0011]
[1772974678084,4.57548873,1945.6,1945.4,0.0011]
[1772974678406,4.57946343,1945.6,1945.5,0.0011]
[1772974678708,2.69195065,1945.6,1945.5,0.0011]
[1772974680615,1.28495065,1945.6,1945.5,0.0011]
[1772974680785,0.001,1945.8,1945.5,1.9489246]
[1772974683718,0.001,1945.8,1945.6,0.57639935]
[1772974683886,0.001,1945.8,1945.6,2.45162351]
[1772974685599,0.001,1945.8,1945.7,1.87522416]
[1772974704641,1.90929916,1945.8,1945.6,0.0011]
[1772974706049,0.001,1945.8,1945.6,1.87632416]
[1772974706239,1.416,1946.0,1945.7,1.87522416]
[1772974708646,0.001,1946.0,1945.8,1.87522416]
[1772974712241,0.001,1946.0,1945.8,3.16003408]
[1772974712726,0.001,1946.0,1945.9,1.7939569]
[1772974725363,0.001,1946.0,1945.9,1.7950569]
[1772974733246,0.001,1946.1,1946.0,1.7939569]
[1772974737775,1.7858317,1946.3,1946.0,1.7939569]
[1772974737975,1.7858317,1946.3,1946.0,3.07864102]
[1772974740478,3.07129639,1946.4,1946.1,1.7939569]
[1772974742175,0.001,1946.4,1946.2,1.7939569]
[1772974742681,0.001,1946.6,1946.2,1.76160287]
[1772974744351,0.001,1946.6,1946.4,1.79264149]
[1772974744565,1.88755945,1946.5,1945.9,8.13374149]
[1772974745055,1.88755945,1946.4,1945.9,8.13374149]
[1772974745396,1.88755945,1946.4,1945.9,7.62584833]
[1772974748391,1.28446073,1946.4,1945.9,7.62584833]
[1772974748587,1.88755945,1946.3,1945.9,7.62584833]
[1772974749392,1.88755945,1946.3,1946.0,0.0011]
[1772974749693,1.88855945,1946.3,1946.0,0.0011]
[1772974751267,1.88755945,1946.2,1946.0,0.0011]
[1772974756110,1.88755945,1946.3,1946.0,0.0011]
[1772974759481,1.28435653,1946.5,1946.0,0.0011]
[1772974759687,1.88755945,1946.4,1946.0,1.79374149]
[1772974761509,1.88755945,1946.4,1946.1,0.0011]
[1772974761914,1.88855945,1946.3,1946.1,0.0011]
[1772974763207,1.88855945,1946.3,1945.9,0.0011]
[1772974763510,1.88855945,1946.3,1945.9,1.79374149]
[1772974764012,3.17309344,1946.3,1945.9,1.79374149]
[1772974766625,1.88855945,1946.3,1945.9,1.79374149]
[1772974766803,3.17306469,1946.3,1946.0,1.79264149]
[1772974768324,3.17305019,1946.3,1946.0,1.79264149]
[1772974769117,1.88855945,1946.3,1946.0,1.79264149]
[1772974769509,1.88855945,1946.3,1946.0,3.07732589]
[1772974770391,1.88855945,1946.3,1946.0,1.79264149]
[1772974771022,1.88855945,1946.3,1946.0,3.07727562]
[1772974771222,0.001,1946.3,1946.1,1.79264149]
[1772974772195,1.88855945,1946.3,1946.0,3.07727562]
[1772974773617,0.001,1946.3,1946.1,1.92058812]
[1772974775926,0.001,1946.3,1946.1,1.92168812]
[1772974787729,0.001,1946.2,1946.1,1.92168812]
[1772974789230,0.001,1946.2,1946.1,0.0011]
[1772974789629,1.28443265,1946.3,1946.2,1.92058812]
[1772974789837,1.94781379,1946.6,1946.2,1.92058812]
[1772974790013,1.28443265,1946.5,1946.2,1.92058812]
[1772974791731,1.28443265,1946.5,1946.1,0.0011]
[1772974791732,1.94681379,1946.4,1946.1,0.0011]
[1772974791919,1.94681379,1946.3,1946.1,0.0011]
[1772974792230,3.23124644,1946.3,1946.1,0.0011]
[1772974792806,3.23124644,1946.2,1946.1,0.0011]
[1772974793004,1.94681379,1946.2,1946.1,0.0011]
[1772974793513,1.94681379,1946.4,1946.1,0.0011]
[1772974793716,1.94681379,1946.3,1946.1,0.0011]
[1772974794330,3.23124644,1946.4,1946.1,1.92168812]
[1772974794524,1.28443265,1946.3,1946.1,1.92168812]
[1772974799342,1.28443265,1946.3,1946.2,0.0011]
[1772974799640,1.28543265,1946.3,1946.2,0.0011]
[1772974801546,1.94681379,1946.2,1946.1,0.0011]
[1772974801841,3.23124644,1946.2,1946.1,0.0011]
[1772974802336,2.70450615,1946.3,1946.1,0.0011]
[1772974802337,1.28550615,1946.3,1946.1,0.0011]
[1772974802655,1.28543265,1946.3,1946.1,1.96251204]
[1772974802863,0.001,1946.3,1946.1,1.96251204]
[1772974803026,5.13666476,1946.8,1946.1,1.96251204]
[1772974803027,0.00153886,1947.0,1946.3,1.96141204]
[1772974803543,0.00153886,1947.0,1946.5,1.96141204]
[1772974804218,1.28797151,1947.0,1946.5,1.96141204]
[1772974804637,1.9293275,1946.9,1946.5,1.96141204]
[1772974804946,1.9293275,1946.8,1946.4,1.88559067]
[1772974805148,3.21576015,1946.8,1946.4,1.88559067]
[1772974805852,1.9293275,1946.6,1946.2,1.88559067]
[1772974806745,1.28643265,1946.5,1946.1,0.0011]
[1772974806914,1.9293275,1946.4,1946.1,0.0011]
[1772974807110,1.9293275,1946.4,1946.1,1.88669067]
[1772974807853,3.21380009,1946.4,1946.1,1.88669067]
[1772974808030,3.21576015,1946.3,1946.1,0.0011]
[1772974808421,1.28643265,1946.2,1946.1,0.0011]
[1772974808632,3.21576015,1946.2,1946.1,0.0011]
[1772974809034,1.9293275,1946.3,1946.0,0.0011]
[1772974810148,1.422,1946.5,1946.1,1.88559067]
[1772974810722,3.3513275,1946.5,1946.1,1.88559067]
[1772974811251,3.3513275,1946.5,1946.1,1.88669067]
[1772974811749,1.9293275,1946.4,1946.1,1.88669067]
[1772974811954,1.28448851,1946.3,1946.1,0.0011]
[1772974812438,3.21379993,1946.4,1946.1,1.88669067]
[1772974812618,0.46941954,1946.3,1946.1,1.88669067]
[1772974813121,0.001,1946.6,1946.1,1.88669067]
[1772974813427,0.47041954,1946.6,1946.1,1.88669067]
[1772974813619,1.9293275,1946.5,1946.1,1.88669067]
[1772974814040,1.9293275,1946.4,1946.1,1.88669067]
[1772974814747,3.21374149,1946.5,1946.1,1.88669067]
[1772974814947,2.39874704,1946.4,1946.1,1.88669067]
[1772974815452,2.39874704,1946.3,1946.1,0.0011]
[1772974815656,1.9293275,1946.3,1946.1,0.0011]
[1772974815959,0.46941954,1946.4,1946.1,1.88669067]
[1772974816250,2.39874704,1946.3,1946.1,0.0011]
[1772974817345,0.46941954,1946.2,1946.1,0.0011]
[1772974817739,2.39874704,1946.2,1946.1,0.0011]
[1772974817941,0.46941954,1946.2,1946.1,0.0011]
[1772974818255,3.68330155,1946.2,1946.1,0.0011]
[1772974818826,2.39874704,1946.2,1946.1,0.0011]
[1772974819449,0.46941954,1946.2,1946.1,1.88669067]
[1772974819621,1.424,1946.5,1946.2,1.88559067]
[1772974819622,1.425,1946.5,1946.2,1.88559067]
[1772974819838,2.70936381,1946.5,1946.2,1.88559067]
[1772974820043,4.63869131,1946.5,1946.2,1.88559067]
[1772974820221,1.9293275,1946.4,1946.1,1.88669067]
[1772974821849,1.9293275,1946.4,1946.1,0.0011]
[1772974822248,3.21376306,1946.4,1946.1,0.0011]
[1772974823560,3.21376306,1946.4,1946.2,0.0011]
[1772974823853,0.001,1946.3,1946.2,0.0011]
[1772974826855,0.001,1946.3,1946.2,1.88669067]
[1772974827858,3.21463037,1946.6,1946.2,0.0011]
[1772974828039,3.21463037,1946.6,1946.2,3.1712419]
[1772974828238,3.21463037,1946.6,1946.3,1.88559067]
[1772974828847,0.001,1946.6,1946.3,1.88559067]
[1772974831631,0.001,1946.6,1946.4,1.88559067]
[1772974831831,0.001,1946.6,1946.5,3.1699472]
[1772974838482,2.00666107,1947.0,1946.6,1.9048496]
[1772974844570,2.00666107,1947.0,1946.7,1.9048496]
[1772974844976,2.00666107,1947.0,1946.5,5.13730499]
[1772974844977,2.00512221,1946.9,1946.3,9.52930288]
[1772974846653,2.00512221,1946.8,1946.3,3.18930288]
[1772974847251,2.00512221,1946.8,1946.4,0.0011]
[1772974848685,2.00512221,1946.7,1946.4,3.19035716]
[1772974851454,1.284163,1946.8,1946.5,1.9048496]
[1772974852582,3.28928521,1946.8,1946.5,1.9048496]
[1772974854679,2.00512221,1946.7,1946.4,0.0011]
[1772974854878,1.28514019,1946.9,1946.5,1.9048496]
[1772974855460,3.2902624,1946.9,1946.5,1.9048496]
[1772974856185,1.28514019,1946.9,1946.5,1.9048496]
[1772974856370,3.2902624,1946.9,1946.5,1.9048496]
[1772974856769,2.00612221,1946.9,1946.5,1.9048496]
[1772974856976,3.29021487,1946.9,1946.5,1.9048496]
[1772974857695,2.00612221,1946.9,1946.6,1.9048496]
[1772974857922,3.29021582,1946.9,1946.6,1.9048496]
[1772974858098,2.00512221,1946.8,1946.5,1.9048496]
[1772974859105,2.00612221,1946.8,1946.5,1.9048496]
[1772974861515,0.001,1946.8,1946.5,1.9048496]
[1772974863734,0.001,1946.8,1946.5,3.18920333]
[1772974864009,0.001,1946.8,1946.6,1.93005451]
[1772974864589,2.00558723,1946.7,1946.4,1.97491908]
[1772974864794,2.00558723,1946.7,1946.3,0.0011]
[1772974866973,2.00558723,1946.5,1946.3,0.0011]
[1772974868828,1.28442252,1946.4,1946.3,0.0011]
[1772974869127,3.29000975,1946.4,1946.3,0.0011]
[1772974870621,2.00558723,1946.3,1946.1,0.0011]
[1772974870783,2.00558723,1946.3,1946.0,0.0022]
[1772974870784,1.28449966,1946.3,1946.0,0.0022]
[1772974871127,2.00558723,1946.2,1946.0,0.0022]
[1772974879617,2.00558723,1946.3,1945.9,3.25966515]
[1772974879823,2.00558723,1946.3,1946.0,0.0022]
[1772974882532,2.00558723,1946.3,1946.1,0.0011]
[1772974882694,0.001,1946.2,1946.1,0.0011]
[1772974883395,2.00658723,1946.2,1946.0,0.0011]
[1772974883629,2.00658723,1946.2,1946.0,0.0033]
[1772974885424,0.001,1946.2,1946.1,0.0022]
[1772974886227,2.00658723,1946.2,1946.1,0.0022]
[1772974887932,3.29114174,1946.2,1946.1,0.0022]
[1772974888236,2.00658723,1946.2,1946.1,0.0022]
[1772974895038,2.00658723,1946.2,1946.1,0.0033]
[1772974898346,2.00658723,1946.2,1946.1,0.0011]
[1772974899350,2.00658723,1946.2,1946.1,0.0033]
[1772974899825,2.00658723,1946.2,1945.7,0.0011]
[1772974899826,1.83384738,1946.1,1945.4,0.0011]
[1772974900025,1.83384738,1946.1,1945.4,3.16636478]
[1772974901230,1.83384738,1945.9,1945.6,1e-08]
[1772974901430,1.83384738,1945.7,1945.6,1e-08]
[1772974902657,1.439,1945.7,1945.6,1e-08]
[1772974903340,1.439,1945.7,1945.1,1.88021288]
[1772974903341,1.83384738,1945.6,1945.1,1.88021288]
[1772974905427,1.83384738,1945.5,1945.1,3.16545848]
[1772974906559,1.83384738,1945.5,1945.1,5.13562284]
[1772974906725,1.83384738,1945.5,1945.0,1.88021288]
[1772974906931,1.83384738,1945.5,1945.1,1.88021288]
[1772974907859,1.83384738,1945.4,1945.1,1.88021288]
[1772974910349,1.83384738,1945.4,1945.1,3.16549029]
[1772974911945,1.83384738,1945.4,1945.2,5.13562284]
[1772974912146,1.83384738,1945.4,1945.1,3.16549029]
[1772974916865,1.2849446,1945.7,1945.3,1.88021288]
[1772974917049,1.83384738,1945.7,1945.2,6.42081761]
[1772974917255,1.83384738,1945.7,1945.2,8.30103049]
[1772974918353,1.83384738,1945.7,1945.2,5.13562284]
[1772974918666,1.83384738,1945.7,1945.0,1.28529098]
[1772974918861,1.83384738,1945.7,1945.1,5.13562284]
[1772974919065,1.83384738,1945.5,1945.1,5.13562284]
[1772974919874,1.83384738,1945.5,1945.1,5.13672284]
[1772974920247,1.83384738,1945.5,1945.1,6.42200136]
[1772974920979,1.83384738,1945.3,1944.9,0.0011]
[1772974921278,1.83384738,1945.1,1944.9,0.0011]
[1772974923274,2.0028611,1945.0,1944.9,0.0011]
[1772974924194,2.03543091,1945.3,1944.9,5.05914341]
[1772974924395,2.03543091,1945.3,1945.0,5.05804341]
[1772974926580,3.32064579,1945.2,1945.0,5.05804341]
[1772974926798,1.28521488,1945.2,1945.0,5.05804341]
[1772974926963,1.28521488,1945.2,1945.0,7.07785843]
[1772974927283,3.32064579,1945.2,1945.0,5.05804341]
[1772974927782,2.03543091,1945.1,1944.9,0.0011]
[1772974928476,3.32064579,1945.2,1944.9,4.20250452]
[1772974928776,2.03543091,1945.1,1944.9,4.20250452]
[1772974929576,2.03543091,1945.1,1944.9,0.0011]
[1772974930084,2.03543091,1945.1,1944.9,4.20250452]
[1772974930782,3.32077795,1945.0,1944.9,4.20250452]
[1772974930985,3.32077795,1945.0,1944.9,0.0011]
[1772974931352,2.03543091,1944.9,1944.8,0.0011]
[1772974931558,2.03543091,1944.9,1944.7,0.0011]
[1772974931758,3.48043091,1944.8,1944.7,4.20250452]
[1772974932170,2.03543091,1944.7,1944.6,0.0011]
[1772974932481,2.03543091,1944.7,1944.6,0.0022]
[1772974933386,2.73051256,1944.8,1944.6,0.0022]
[1772974933586,2.03543091,1945.5,1944.7,2.01981502]
[1772974933787,1.447,1945.6,1944.7,2.02091502]
[1772974933989,0.002,1945.6,1944.9,2.01981502]
[1772974935691,0.002,1945.6,1945.1,2.01981502]
[1772974938283,0.002,1945.6,1945.2,3.3050299]
[1772974939195,2.03743091,1945.6,1945.3,0.0011]
[1772974939597,2.03743091,1945.6,1945.2,3.3050299]
[1772974939903,2.03743091,1945.6,1945.3,0.0011]
[1772974940982,3.32238661,1945.6,1945.3,0.0011]
[1772974941820,2.03743091,1945.6,1945.3,0.0011]
[1772974942097,2.03643091,1945.6,1945.3,0.0011]
[1772974942296,3.32138419,1945.6,1945.3,0.0011]
[1772974942483,2.03643091,1945.5,1945.0,2.01981502]
[1772974942681,3.3214583,1945.5,1945.0,3.30509894]
[1772974942887,0.001,1945.5,1945.1,2.01981502]
[1772974944198,0.001,1945.5,1945.1,2.02091502]
[1772974944399,0.002,1945.5,1945.1,2.02091502]
[1772974944784,0.002,1945.5,1945.2,2.01981502]
[1772974944985,0.001,1945.6,1945.3,2.01981502]
[1772974945189,0.002,1945.6,1945.3,2.02091502]
[1772974946176,2.03743091,1945.6,1945.4,0.0011]
[1772974946490,2.03643091,1945.5,1945.2,0.0011]
[1772974946892,2.03643091,1945.5,1945.2,2.02091502]
[1772974948182,0.001,1945.5,1945.2,2.02091502]
[1772974949209,0.001,1945.5,1945.2,1.28625135]
[1772974949510,0.001,1945.5,1945.3,2.01981502]
[1772974950813,0.001,1945.6,1945.5,2.01981502]
[1772974951017,0.002,1945.6,1945.5,2.01981502]
[1772974953316,0.00153886,1946.0,1945.6,2.13998011]
[1772974953615,0.00153886,1946.0,1945.6,2.14108011]
[1772974955709,2.74880868,1946.5,1945.8,2.13998011]
[1772974955710,3.37011579,1946.5,1945.8,2.13998011]
[1772974955905,3.37014713,1946.4,1945.8,2.13998011]
[1772974957309,3.37025396,1946.3,1945.8,2.13998011]
[1772974957615,2.08672155,1946.2,1945.8,2.13998011]
[1772974957816,2.08572155,1946.0,1945.4,2.13998011]
[1772974959123,2.08572155,1946.0,1945.5,0.0011]
[1772974959296,2.08572155,1945.9,1945.4,0.0011]
[1772974959915,1.28481858,1945.8,1945.4,2.14108011]
[1772974960116,3.37054013,1945.8,1945.4,2.14108011]
[1772974960692,2.08572155,1945.8,1945.5,0.0011]
[1772974961018,2.08315158,1945.8,1945.5,0.0011]
[1772974962828,5.13923325,1946.2,1945.7,2.13998011]
[1772974962829,1.28556022,1946.2,1945.7,2.13998011]
[1772974963207,3.37128177,1946.2,1945.7,2.13998011]
[1772974963723,2.08672155,1946.2,1945.7,2.13998011]
[1772974964306,3.37128227,1946.2,1945.9,2.13998011]
[1772974965724,0.001,1946.2,1945.9,2.13998011]
[1772974965927,0.001,1946.2,1946.0,2.13998011]
[1772974967132,0.001,1946.2,1945.9,1.28473813]
[1772974967133,1.28556279,1946.2,1945.8,3.4247499]
[1772974968129,0.001,1946.1,1945.9,2.13998011]
[1772974968296,0.001,1946.1,1946.0,0.0011]
[1772974968502,0.001,1946.1,1945.7,3.42481673]
[1772974968931,0.001,1946.1,1945.8,2.13998011]
[1772974971134,0.001,1946.1,1945.9,0.0011]
[1772974971135,2.08672155,1946.1,1945.9,0.0011]
[1772974971334,2.08672155,1946.1,1945.7,0.0011]
[1772974971529,2.08672155,1946.1,1945.7,2.14108011]
[1772974972634,0.001,1946.1,1945.9,2.13998011]
[1772974973637,2.08672155,1946.1,1945.9,0.0011]
[1772974975036,0.001,1946.1,1945.9,0.0011]
[1772974975229,2.08672155,1946.1,1945.9,0.0011]
[1772974976543,0.001,1946.1,1945.9,2.14108011]
[1772974976745,0.001,1946.1,1946.0,0.0011]
[1772974984121,0.001,1946.1,1946.0,2.15244585]
[1772974984451,2.05836655,1946.4,1946.1,2.15244585]
[1772974984641,0.001,1946.7,1946.1,2.15244585]
[1772974984642,3.51336655,1946.6,1946.2,2.15134585]
[1772974984946,3.51336655,1946.6,1946.2,2.15244585]
[1772974985547,0.001,1946.7,1946.3,2.15244585]
[1772974985754,0.001,1946.9,1946.3,2.15134585]
[1772974985973,0.001,1946.9,1946.5,2.15134585]
[1772974986528,0.001,1946.9,1946.6,1.28429055]
[1772974986765,0.001,1946.9,1946.6,3.4356364]
[1772974986940,0.001,1946.9,1946.7,2.15134585]
[1772974990459,0.001,1946.9,1946.8,2.15244585]
[1772974991263,0.00153886,1947.0,1946.8,2.15244585]
[1772974991453,0.00153886,1947.0,1946.9,0.0011]
[1772974991858,2.05836655,1947.7,1946.8,2.15134585]
[1772974992161,1.28374715,1947.6,1946.8,2.15134585]
[1772974992462,5.13501503,1948.0,1947.1,2.15134585]
[1772974992463,2.05836655,1947.9,1947.1,2.15134585]
[1772974992679,2.05836655,1947.7,1947.1,2.15134585]
[1772974993053,0.29978235,1947.6,1947.1,2.15134585]
[1772974993263,1.28491816,1948.0,1947.1,2.15134585]
[1772974993439,0.29978235,1947.9,1947.1,2.15134585]
[1772974993792,0.29978235,1947.9,1947.2,2.15134585]
[1772974993973,0.30132121,1948.0,1947.2,2.15134585]
[1772974994287,2.3581489,1947.9,1947.2,2.15134585]
[1772974994489,3.64158338,1947.9,1947.4,2.15134585]
[1772974994839,0.29978235,1947.9,1947.4,2.15134585]
[1772974995039,1.58322639,1947.9,1947.4,2.15134585]
[1772974995841,0.29978235,1947.9,1947.4,2.15134585]
[1772974996253,1.58321783,1947.9,1947.4,2.15134585]
[1772974996542,0.29978235,1947.8,1947.4,3.43509403]
[1772974996854,2.05836655,1947.7,1947.2,2.15134585]
[1772974997158,2.3581489,1947.7,1947.2,2.15134585]
[1772974997357,2.05836655,1947.5,1946.8,2.15134585]
[1772974997539,2.05836655,1947.5,1946.6,2.15134585]